Cogmind - Beta 14 @@@ ROGUE MODE // 2025.01.10 @ 21:34:50 Player: harambe Result: Destroyed by G-67 Veteran with Plasma Rifle Performance ------------- Evolutions (6) 3000 Regions Visited (16) 3200 Robots Destroyed (134) 670 Value Destroyed (4386) 4386 Prototype IDs (27) 540 Alien Tech Used (0) 0 Bonus (1752) 1752 TOTAL SCORE: 13548 Bonus ------- High Alert Combat Kills 95 Follower Combat Kills 163 Aligned with FarCom 300 Met Warlord at Base 500 MAIN.C Attacked Warlord 500 Warlord Defense Kills 194 Cogmind --------- Core Integrity 0/1150 Matter 300/300 Energy 98/100 System Corruption 3% Temperature Cool (33) Movement Core (50) Location -4/Upper Caves Parts ------- > --- POWER (2) -------- (None) > --- PROPULSION (7) --- (None) > --- UTILITY (8) ------ Hacking Suite > --- WEAPON (2) ------- (None) > --- INVENTORY (5) ---- Improved Deuterium Engine Quantum Rifle Light Antimatter Cannon Molecular Deconstructor Peak State ------------ > --- POWER ------------ Backup Power III Backup Power III > --- PROPULSION ------- Backup Propulsion III Backup Propulsion III Makeshift Hover Unit Makeshift Hover Unit Makeshift Hover Unit Antigrav System > --- UTILITY ---------- Improved Signal Interpreter Advanced Targeting Computer Hacking Suite > --- WEAPON ----------- Vortex Rail Vortex Rail > --- INVENTORY -------- Improved Deuterium Engine Latent Energy Streamer Molecular Deconstructor Powered Hammer [Rating: 63] Favorites ----------- Power Reinforced Deuterium Engine Engine Reinforced Deuterium Engine Power Core Light Fission Core Propulsion Light Treads Treads Light Treads Leg Carbon-fiber Leg Wheel Wheel Hover Unit Makeshift Hover Unit Flight Unit VTOL Module Utility Large Storage Unit Device Improved Heat Sink Storage Large Storage Unit Processor Advanced Targeting Computer Hackware Hacking Suite Protection Hardened Light Armor Plating Weapon Flak Gun Energy Gun EM Shotgun Energy Cannon Heavy Ion Cannon Ballistic Gun Flak Gun Ballistic Cannon Flak Cannon Launcher Mini Grenade Launcher Special Weapon Molecular Deconstructor Impact Weapon Powered Hammer Build | -11 -10 -10 -9 -9 -9 -8 -8 -7 -6 -5 -5 -5 -5 -4 -4 -4 ------- Run | Yrd Mat Min Mat Min Exi Min Mat Fac Fac Fac Upp Upp War Pro Fac Upp Slots Evolved 12 | . . . 2 . . . 2 2 2 2 . . . . 2 . Power 1 | . . . . . . . . . 1 . . . . . . . Propulsion 5 | . . . 1 . . . . 2 1 . . . . . 1 . Utility 6 | . . . 1 . . . 2 . . 2 . . . . 1 . Weapon . | . . . . . . . . . . . . . . . . . Parts Attached 148 | . 11 . 18 4 1 6 36 4 30 5 13 6 6 . 7 1 Power 14 | . 2 . 2 . . . 3 . 5 . 2 . . . . . Engine 11 | . 2 . 2 . . . 3 . 3 . 1 . . . . . Core 3 | . . . . . . . . . 2 . 1 . . . . . Reactor . | . . . . . . . . . . . . . . . . . Propulsion 42 | . 5 . 8 3 . . 9 2 9 1 . . 4 . 1 . Treads 17 | . 1 . 2 3 . . 9 1 1 . . . . . . . Leg 5 | . . . . . . . . . 4 1 . . . . . . Wheel 13 | . 4 . 6 . . . . 1 2 . . . . . . . Hover 5 | . . . . . . . . . . . . . 4 . 1 . Flight 2 | . . . . . . . . . 2 . . . . . . . Utility 36 | . 3 . 2 1 1 . 9 2 7 4 2 2 . . 2 1 Device 14 | . 2 . . . . . 2 1 2 3 1 1 . . 1 1 Storage 3 | . 1 . . . 1 . 1 . . . . . . . . . Processor 5 | . . . 1 . . . 1 . 2 . . 1 . . . . Hackware 2 | . . . 1 . . . . . 1 . . . . . . . Protection 12 | . . . . 1 . . 5 1 2 1 1 . . . 1 . Artifact . | . . . . . . . . . . . . . . . . . Weapon 56 | . 1 . 6 . . 6 15 . 9 . 9 4 2 . 4 . Energy Gun 7 | . 1 . 4 . . . . . . . . . 2 . . . Energy Cannon 11 | . . . 1 . . . 4 . 3 . 3 . . . . . Ballistic Gun 10 | . . . . . . 1 6 . 3 . . . . . . . Ballistic Cannon 8 | . . . 1 . . 1 . . 2 . 2 . . . 2 . Launcher 14 | . . . . . . 4 5 . 1 . 3 1 . . . . Special Weapon 1 | . . . . . . . . . . . . 1 . . . . Impact Weapon 5 | . . . . . . . . . . . 1 2 . . 2 . Slashing Weapon . | . . . . . . . . . . . . . . . . . Piercing Weapon . | . . . . . . . . . . . . . . . . . Special Melee Weapon . | . . . . . . . . . . . . . . . . . Unidentified Prototypes 4 | . . . 1 . . . . . . . . 1 1 . 1 . Parts Lost 49 | . 1 . 1 1 . . 3 . 9 . 16 1 . 11 4 2 Power 6 | . 1 . 1 . . . . . 1 . 1 . . 2 . . Propulsion 20 | . . . . . . . 1 . 6 . 6 . . 6 1 . Utility 16 | . . . . 1 . . 2 . 2 . 6 . . 1 2 2 Weapon 7 | . . . . . . . . . . . 3 1 . 2 1 . Highest Loss Streak 6 | . 1 . 1 1 . . 1 . 4 . 6 1 . 6 3 1 To Critical Strikes 2 | . . . . . . . . . . . 1 . . 1 . . Average Slot Usage (%) 84 | . 99 100 99 99 77 100 99 100 92 100 73 15 61 50 20 6 Engine 8 | . 14 14 11 11 11 11 8 7 8 5 4 . 9 5 . . Treads 18 | . 10 14 11 27 33 33 26 30 22 5 2 . . . . . Leg 1 | . . . . . . . . . 1 17 9 . . . . . Wheel 5 | . 16 14 21 5 . . . 7 9 11 3 . . . . . Hover 1 | . . . . . . . . . . . . . 23 18 2 . Device 5 | . 13 14 5 . . . 9 7 5 17 15 . . . 3 1 Storage 7 | . 14 14 11 11 11 11 9 7 6 5 4 . . . . . Processor 4 | . . . 11 . . . 3 7 6 5 5 5 11 10 5 . Hackware 4 | . . . 5 11 11 11 1 . 1 5 5 5 5 5 5 5 Protection 8 | . . . . 10 11 11 21 15 10 5 3 . . . 1 . Energy Gun 3 | . 12 14 14 11 . . . . . . . . 9 8 . . Energy Cannon 2 | . . . 5 11 . . 4 7 4 . 2 . . . . . Ballistic Gun 5 | . 15 14 1 . . 6 12 7 4 11 4 . . . . . Ballistic Cannon 1 | . . . . . . 6 . . 3 . 2 . . . . . Peak Build Rating 63 | . 8 8 17 18 18 19 30 33 51 60 60 29 63 63 29 13 Average Rating 27 | . 7 8 14 17 14 17 23 32 40 59 49 11 43 44 19 8 On Entrance 22 | 6 6 8 8 16 18 14 19 30 33 51 60 12 16 63 9 9 Naked Turns . | . . . . . . . . . . . . . . . . . Heaviest Build 89 | 11 30 30 34 39 32 38 70 70 89 61 70 8 22 22 9 3 Greatest Support 80 | 20 20 10 22 63 63 63 65 80 80 22 22 3 63 63 10 3 Greatest Overweight (x) 18 | . 2 2 1 1 . . 1 . 7 2 18 2 2 . 1 . Average Overweight (x) . | . 1 2 1 . . . . . 1 2 1 . . . . . Largest Inventory Capacity 15 | . 15 15 15 15 15 15 15 15 15 15 15 5 5 5 5 5 Average Capacity 13 | . 9 15 15 15 15 15 15 15 15 15 13 5 5 5 5 5 Most Carried 15 | . 14 14 15 15 15 15 15 15 15 15 15 5 5 5 5 5 Average Carried 12 | . 8 14 14 14 14 14 14 14 14 14 12 4 4 5 4 4 Final Capacity 15 | 8 15 15 15 15 15 15 15 15 15 15 5 5 5 5 5 5 Final Carried 15 | 6 14 14 15 15 15 15 15 15 15 15 4 5 5 5 4 5 Class Distribution -------------------- 85% | Mutant 12% | Scavenger-Mutant Dominant Class ---------------- Mutant | -10/Materials Mutant | -10/Mines Mutant | -9/Materials Mutant | -9/Mines Mutant | -9/Exiles Scavenger-Mutant | -8/Mines Mutant | -8/Materials Mutant | -7/Factory Mutant | -6/Factory Scavenger-Mutant | -5/Factory Mutant | -5/Upper Caves Mutant | -5/Upper Caves Mutant | -5/Warlord Mutant | -4/Proximity Caves Mutant | -4/Factory Mutant | -4/Upper Caves Resources | -11 -10 -10 -9 -9 -9 -8 -8 -7 -6 -5 -5 -5 -5 -4 -4 -4 ----------- Run | Yrd Mat Min Mat Min Exi Min Mat Fac Fac Fac Upp Upp War Pro Fac Upp Matter Collected 3206 | 166 163 . 376 40 . 103 637 114 817 . 474 153 100 . 53 10 Remotely 155 | . . . . . . . . . 155 . . . . . . . Salvage Created 3809 | . 199 . 1010 188 . 182 555 168 766 . 594 9 91 31 16 . Parts 242 | . 15 . 64 14 . 18 33 11 41 . 37 1 3 3 2 . Haulers Intercepted . | . . . . . . . . . . . . . . . . . Recyclers Shooed 1 | . . . 1 . . . . . . . . . . . . . Parts Field Recycled . | . . . . . . . . . . . . . . . . . Retrieved Matter . | . . . . . . . . . . . . . . . . . Parts Self-Destructed 38 | . . . . . . . . . . . 31 4 . 3 . . Prevented . | . . . . . . . . . . . . . . . . . Kills | -11 -10 -10 -9 -9 -9 -8 -8 -7 -6 -5 -5 -5 -5 -4 -4 -4 ------- Run | Yrd Mat Min Mat Min Exi Min Mat Fac Fac Fac Upp Upp War Pro Fac Upp Combat Hostiles Destroyed 117 | . 7 . 23 6 . 11 18 1 19 . 24 1 2 5 . . Guns 61 | . 7 . 12 4 . 1 11 1 9 . 10 . 2 4 . . Cannons 24 | . . . 11 2 . . 1 . 6 . 4 . . . . . AOE 32 | . . . . . . 10 6 . 4 . 10 1 . 1 . . Classes Destroyed 12 | . 3 . 4 . . . 2 1 1 . . . 1 . . . Worker 5 | . . . 1 . . . . . 3 . . . . . 1 . Builder 6 | . . . . . . . 2 . 4 . . . . . . . Recycler 2 | . . . . . . . . 2 . . . . . . . . Operator 2 | . 1 . . . . . . . 1 . . . . . . . Watcher 2 | . . . 1 . . . 1 . . . . . . . . . Swarmer 49 | . 4 . 3 3 . 8 6 . 4 . 16 1 . 4 . . Grunt 45 | . 3 . 13 2 . 3 9 . 8 . 6 . 1 . . . Brawler 2 | . . . 1 1 . . . . . . . . . . . . Protector 1 | . . . . . . . . . . . . . 1 . . . Sentry 14 | . . . 6 . . . 1 1 3 . 2 . . 1 . . Hunter 3 | . . . . . . . 2 . 1 . . . . . . . Programmer 3 | . . . . . . . . . 3 . . . . . . . Best Kill Streak 12 | . 3 . 5 6 . 4 4 3 12 . 7 1 2 4 1 . Combat Bots Only 7 | . 3 . 5 6 . 4 3 1 6 . 7 1 2 4 . . Max Kills in Single Turn 9 | . 2 . 1 1 . 2 3 1 9 . 3 1 1 1 1 . Gunslinging 1 | . 1 . . . . . . . . . 1 . . . . . Exploded 3 | . . . . . . 2 2 . 2 . 3 1 . 1 . . Melee . | . . . . . . . . . . . . . . . . . Uniques/NPCs Destroyed . | . . . . . . . . . . . . . . . . . Combat | -11 -10 -10 -9 -9 -9 -8 -8 -7 -6 -5 -5 -5 -5 -4 -4 -4 -------- Run | Yrd Mat Min Mat Min Exi Min Mat Fac Fac Fac Upp Upp War Pro Fac Upp Hostile Shots Fired 859 | . 34 . 90 18 . 21 90 27 188 . 139 8 6 93 95 50 Missed 275 | . 16 . 32 4 . 6 17 9 41 . 45 2 3 40 33 27 Damage Taken 9168 | . 262 . 744 203 . 182 1153 111 2019 . 1735 104 39 915 1228 473 Core 2319 | . 108 . 145 . . 40 50 6 173 . 133 37 . 457 782 388 Absorbed by Shields 19 | . . . . . . . . . . . . . 19 . . . Ignored by Resistances 153 | . . . . . . . . 24 129 . . . . . . . Regen/Repaired (Parts) 28 | . . . 28 . . . . . . . . . . . . . Core Remaining (%) 73 | 100 . 56 . . . 53 90 99 79 . . . . 37 . . Volleys Fired 280 | . 22 . 60 9 . 8 54 4 58 . 42 2 5 15 1 . Largest 2 | . 2 . 2 2 . 2 2 2 2 . 2 1 2 2 1 . Hottest 147 | . 70 . 113 113 . 60 93 90 130 . 147 43 90 90 60 . Shots Fired 524 | . 44 . 110 17 . 16 103 8 108 . 76 2 10 29 1 . Gun 348 | . 44 . 74 9 . 1 79 4 61 . 37 . 10 29 . . Cannon 139 | . . . 36 8 . 1 14 4 45 . 30 . . . 1 . Launcher 37 | . . . . . . 14 10 . 2 . 9 2 . . . . Special . | . . . . . . . . . . . . . . . . . Kinetic 253 | . 22 . 15 . . 2 79 4 78 . 52 . . . 1 . Thermal 131 | . 22 . 42 8 . . 14 4 28 . 13 . . . . . Explosive 37 | . . . . . . 14 10 . 2 . 9 2 . . . . Electromagnetic 64 | . . . 53 9 . . . . . . 2 . . . . . Entropic 39 | . . . . . . . . . . . . . 10 29 . . Robot Hit Streak 16 | . 9 . 13 3 . 6 9 6 16 . 7 1 3 7 . . Robot Miss Streak 13 | . 5 . 4 3 . . 5 2 9 . 13 1 1 3 . . Penetration Max 1 | . . . . . . . . . . . . . 1 . . . Secondary Targets 5 | . 2 . . . . . . . 1 . 2 . . . . . Max Gunslinging Chain 1 | . 1 . . . . . . . 1 . 1 . . . . . Shots Hit Robots 379 | . 28 . 85 11 . 5 70 6 92 . 54 1 7 17 3 . Core Hits 353 | . 14 . 49 9 . 20 43 5 118 . 71 2 11 10 1 . Critical Kills . | . . . . . . . . . . . . . . . . . Critical Parts Destroyed 3 | . . . . . . . . . . . . . 2 1 . . Critical Strikes 8 | . 1 . 4 . . . . . . . . . 2 1 . . Burn 4 | . 1 . 3 . . . . . . . . . . . . . Blast 1 | . . . 1 . . . . . . . . . . . . . Detonate 3 | . . . . . . . . . . . . . 2 1 . . Melee Attacks 14 | . . . . . . . . . . . 2 1 . . 11 . Impact 14 | . . . . . . . . . . . 2 1 . . 11 . Slashing . | . . . . . . . . . . . . . . . . . Piercing . | . . . . . . . . . . . . . . . . . Sneak Attacks 2 | . . . . . . . . . . . . . . . 2 . Combat Hostiles 1 | . . . . . . . . . . . . . . . 1 . Follow-up Attacks . | . . . . . . . . . . . . . . . . . Damage Inflicted 11179 | . 378 . 1356 139 . 617 1675 157 2567 . 2004 180 1135 743 228 . Guns 5254 | . 378 . 900 75 . 16 964 75 1203 . 462 . 517 664 . . Cannons 2074 | . . . 456 64 . . 186 82 772 . 514 . . . . . Explosions 3619 | . . . . . . 601 525 . 588 . 1028 180 618 79 . . Melee 198 | . . . . . . . . . . . . . . . 198 . Ramming 34 | . . . . . . . . . 4 . . . . . 30 . Kinetic 3637 | . 190 . 242 . . 16 964 75 1445 . 705 . . . . . Thermal 2510 | . 188 . 410 64 . . 282 82 530 . 257 . 618 79 . . Explosive 2797 | . . . . . . 601 429 . 588 . 999 180 . . . . Electromagnetic 822 | . . . 704 75 . . . . . . 43 . . . . . Impact 198 | . . . . . . . . . . . . . . . 198 . Slashing . | . . . . . . . . . . . . . . . . . Piercing . | . . . . . . . . . . . . . . . . . Entropic 1181 | . . . . . . . . . . . . . 517 664 . . Highest Corruption 3 | . 1 1 . 1 1 1 . . 1 . 2 2 2 1 1 3 Average Corruption 1 | . 1 1 . 1 1 1 . . 1 . 1 2 1 1 1 2 Corruption Purged . | . . . . . . . . . . . . . . . . . Corruption Blocked . | . . . . . . . . . . . . . . . . . Effects 24 | . 1 . . 1 3 2 . . 7 . 7 3 . . . . Message Errors 4 | . 1 . . 1 . . . . . . 1 1 . . . . Matter Fused 9 | . . . . . 2 2 . . 2 . 2 1 . . . . Heat Flow Errors 2 | . . . . . . . . . 1 . 1 . . . . . Energy Discharges 2 | . . . . . 1 . . . 1 . . . . . . . Parts Rejected 1 | . . . . . . . . . 1 . . . . . . . Data Loss (minor) 2 | . . . . . . . . . 1 . 1 . . . . . Data Loss (major) 3 | . . . . . . . . . . . 2 1 . . . . Weapon Failures 1 | . . . . . . . . . 1 . . . . . . . Overload Shots . | . . . . . . . . . . . . . . . . . Overflow Damage 226 | . . . 2 . . . 40 . 30 . 104 6 . . 44 . Projectiles 2 | . . . 2 . . . . . . . . . . . . . Explosions 180 | . . . . . . . 40 . 30 . 104 6 . . . . Melee 44 | . . . . . . . . . . . . . . . 44 . Knockbacks 19 | . . . 1 . . . . . 15 . 2 . . . 1 . Impact 1 | . . . . . . . . . . . . . . . 1 . Kinetic 16 | . . . 1 . . . . . 13 . 2 . . . . . Secondary 2 | . . . . . . . . . 2 . . . . . . . Self-Inflicted Damage 202 | . . . . . . 40 81 . 66 . . . . . 15 . Shots 4 | . . . . . . 1 2 . 1 . . . . . . . Rammed 6 | . . . . . . . . . 2 . . . . . 4 . Targets Rammed 6 | . . . . . . . . . 2 . . . . . 4 . Kicked . | . . . . . . . . . . . . . . . . . Crushed . | . . . . . . . . . . . . . . . . . Highest Temperature 480 | . 72 . 216 311 . 36 357 17 480 . 205 . 54 174 . . Average Temperature 119 | . 29 . 57 134 . 14 122 15 273 . 31 . 26 83 . . Received Heat Transfer 2040 | . 72 . 249 48 . 27 378 36 651 . 288 . . 99 108 84 Effects 23 | . . . . 1 . . 1 . 21 . . . . . . . Shutdowns 7 | . . . . . . . . . 7 . . . . . . . Interference 12 | . . . . 1 . . . . 11 . . . . . . . Short Circuit 3 | . . . . . . . 1 . 2 . . . . . . . Damage (minor) 1 | . . . . . . . . . 1 . . . . . . . Siege Activations . | . . . . . . . . . . . . . . . . . Robots Corrupted . | . . . . . . . . . . . . . . . . . Combat Hostiles . | . . . . . . . . . . . . . . . . . Parts Fried 3 | . . . 3 . . . . . . . . . . . . . Impact Corruptions 1 | . . . . . . . . . . . . . . . 1 . Robots Melted . | . . . . . . . . . . . . . . . . . Combat Hostiles . | . . . . . . . . . . . . . . . . . Parts Melted 3 | . . . 1 . . . 1 . . . 1 . . . . . Heat Transferred 3873 | . 629 . 1073 111 . . 396 111 703 . 400 . 300 150 . . Parts Sabotaged . | . . . . . . . . . . . . . . . . . Parts Stolen . | . . . . . . . . . . . . . . . . . Parts Stripped . | . . . . . . . . . . . . . . . . . Power Chain Reactions . | . . . . . . . . . . . . . . . . . Latent Energy Used 41 | . . . . . . . . . . . 41 . . . . . LE Corruption 2 | . . . . . . . . . . . 2 . . . . . Alert | -11 -10 -10 -9 -9 -9 -8 -8 -7 -6 -5 -5 -5 -5 -4 -4 -4 ------- Run | Yrd Mat Min Mat Min Exi Min Mat Fac Fac Fac Upp Upp War Pro Fac Upp Peak Influence 612 | . 265 34 612 344 . 202 473 234 415 198 . . . . 349 . Initial 199 | . . 34 13 199 . . 48 179 114 198 . . . . 28 . Average 183 | . 132 34 308 326 . 104 173 185 159 198 . . . . 162 . Maximum Alert Level 2 | . 1 . 2 1 . 1 2 1 2 . . . . . 1 . Low Security (%) 60 | . 82 100 25 . . 67 72 90 61 100 . . . . 49 . Level 1 33 | . 17 . 49 100 . 32 18 9 35 . . . . . 50 . Level 2 6 | . . . 25 . . . 8 . 3 . . . . . . . Level 3 . | . . . . . . . . . . . . . . . . . Level 4 . | . . . . . . . . . . . . . . . . . Level 5 . | . . . . . . . . . . . . . . . . . High Security . | . . . . . . . . . . . . . . . . . Max Security . | . . . . . . . . . . . . . . . . . Squads Dispatched 23 | . 1 . 2 . . . 6 1 7 . . . . . 6 . Investigation 5 | . . . 1 . . . 1 . . . . . . . 3 . Extermination 3 | . . . . . . . . 1 2 . . . . . . . Reinforcement 8 | . 1 . 1 . . . 3 . 2 . . . . . 1 . Assault 1 | . . . . . . . . . . . . . . . 1 . Garrison 6 | . . . . . . . 2 . 3 . . . . . 1 . Intercept . | . . . . . . . . . . . . . . . . . Searches Triggered . | . . . . . . . . . . . . . . . . . Construction Impeded 1 | . . . . . . . 1 . . . . . . . . . Haulers Reinforced 1 | . . . . . . . . . 1 . . . . . . . Active Scanning Responses . | . . . . . . . . . . . . . . . . . Cargo Convoy Interrupts . | . . . . . . . . . . . . . . . . . Stealth | -11 -10 -10 -9 -9 -9 -8 -8 -7 -6 -5 -5 -5 -5 -4 -4 -4 --------- Run | Yrd Mat Min Mat Min Exi Min Mat Fac Fac Fac Upp Upp War Pro Fac Upp Distress Signals 10 | . 1 . 7 . . . 1 . 1 . . . . . . . Communications Jammed . | . . . . . . . . . . . . . . . . . Distress Signals . | . . . . . . . . . . . . . . . . . Times Spotted 236 | . 14 . 44 6 . 12 29 1 25 . 24 4 34 10 20 13 Peak Tracking Total 13 | . 4 . 7 4 . 4 4 2 5 . 5 3 9 6 13 7 Tactical Retreats 24 | . 2 . 3 1 . 1 4 . 2 . 1 2 1 2 2 3 Traps | -11 -10 -10 -9 -9 -9 -8 -8 -7 -6 -5 -5 -5 -5 -4 -4 -4 ------- Run | Yrd Mat Min Mat Min Exi Min Mat Fac Fac Fac Upp Upp War Pro Fac Upp Traps Triggered 5 | . 2 . . . . . 1 . . 1 . . . . 1 . Indirectly . | . . . . . . . . . . . . . . . . . Trap Hack Attempts . | . . . . . . . . . . . . . . . . . Triggered . | . . . . . . . . . . . . . . . . . Disarmed . | . . . . . . . . . . . . . . . . . Reprogrammed . | . . . . . . . . . . . . . . . . . Reused . | . . . . . . . . . . . . . . . . . Traps Extracted . | . . . . . . . . . . . . . . . . . Installed . | . . . . . . . . . . . . . . . . . Triggered 8 | . . . . . . . . . . . . . 8 . . . Machines | -11 -10 -10 -9 -9 -9 -8 -8 -7 -6 -5 -5 -5 -5 -4 -4 -4 ---------- Run | Yrd Mat Min Mat Min Exi Min Mat Fac Fac Fac Upp Upp War Pro Fac Upp Machines Disabled 12 | . 1 . . . . . 3 . 2 . 3 1 . . 2 . Max in Single Turn 3 | . 1 . . . . . 3 . 2 . 1 1 . . 1 . Garrison Access 2 | . . . . . . . 1 . . . . . . . 1 . Machines Repaired . | . . . . . . . . . . . . . . . . . Machines Dismantled . | . . . . . . . . . . . . . . . . . Machines Sabotaged . | . . . . . . . . . . . . . . . . . Overloaded Fab Kills . | . . . . . . . . . . . . . . . . . Hacking | -11 -10 -10 -9 -9 -9 -8 -8 -7 -6 -5 -5 -5 -5 -4 -4 -4 --------- Run | Yrd Mat Min Mat Min Exi Min Mat Fac Fac Fac Upp Upp War Pro Fac Upp Machines Accessed 40 | . 6 . 8 . 1 . 5 1 10 . 1 . 5 . 3 . Terminals 27 | . 6 . 6 . . . 3 1 8 . 1 . . . 2 . Fabricators 1 | . . . . . . . . . 1 . . . . . . . Repair Stations 1 | . . . 1 . . . . . . . . . . . . . Recycling Units 1 | . . . . . . . 1 . . . . . . . . . Scanalyzers 1 | . . . 1 . . . . . . . . . . . . . Garrison Access 3 | . . . . . . . 1 . 1 . . . . . 1 . Total Hacks 97 | . 17 . 22 . 1 . 12 1 21 . 4 . 11 . 8 . Successful 51 | . 7 . 12 . 1 . 4 . 8 . 4 . 11 . 4 . Failed 45 | . 10 . 9 . . . 8 1 13 . . . . . 4 . Catastrophic 8 | . 1 . 1 . . . 1 1 3 . . . . . 1 . Database Lockouts 1 | . . . 1 . . . . . . . . . . . . . Manual 27 | . 8 . 8 . 1 . 4 . 3 . . 1 2 . . . Terminals 70 | . 17 . 16 . . . 8 1 18 . 4 . . . 6 . Fabricators 1 | . . . . . . . . . 1 . . . . . . . Repair Stations 3 | . . . 3 . . . . . . . . . . . . . Recycling Units 3 | . . . . . . . 3 . . . . . . . . . Scanalyzers 3 | . . . 3 . . . . . . . . . . . . . Garrison Access 5 | . . . . . . . 1 . 2 . . . . . 2 . Terminal Hacks 38 | . 5 . 5 . 1 . 1 . 7 . 4 . 11 . 4 . Record 21 | . . . . . . . . . 4 . 4 . 10 . 3 . Robot Analysis 3 | . 2 . 1 . . . . . . . . . . . . . Open Door 1 | . . . . . . . . . . . . . 1 . . . Branch Access Points 3 | . . . 1 . . . . . 1 . . . . . 1 . Emergency Access Points 1 | . . . . . . . . . 1 . . . . . . . Alert Level 1 | . . . . . . . . . 1 . . . . . . . Locate Traps 7 | . 3 . 3 . . . 1 . . . . . . . . . Derelict Proto ID Bank 1 | . . . . . 1 . . . . . . . . . . . Fabricator Hacks 1 | . . . . . . . . . 1 . . . . . . . Build 1 | . . . . . . . . . 1 . . . . . . . Repair Station Hacks 3 | . . . 3 . . . . . . . . . . . . . Scan Component 2 | . . . 2 . . . . . . . . . . . . . Repair 1 | . . . 1 . . . . . . . . . . . . . Recycling Unit Hacks 1 | . . . . . . . 1 . . . . . . . . . Process 1 | . . . . . . . 1 . . . . . . . . . Scanalyzer 2 | . . . 2 . . . . . . . . . . . . . Insert Component 1 | . . . 1 . . . . . . . . . . . . . Analyze 1 | . . . 1 . . . . . . . . . . . . . Garrison Access Hacks 1 | . . . . . . . 1 . . . . . . . . . Seal Access 1 | . . . . . . . 1 . . . . . . . . . Unauthorized Hacks 5 | . 2 . 2 . . . 1 . . . . . . . . . Terminals 5 | . 2 . 2 . . . 1 . . . . . . . . . Botnet 5 | . 2 . 2 . . . 1 . . . . . . . . . Fabricators . | . . . . . . . . . . . . . . . . . Repair Stations . | . . . . . . . . . . . . . . . . . Recycling Units . | . . . . . . . . . . . . . . . . . Scanalyzers . | . . . . . . . . . . . . . . . . . Garrison Access . | . . . . . . . . . . . . . . . . . Data Cores Recovered 1 | . . . . . . . . . 1 . . . . . . . Used 1 | . . . . . . . . . 1 . . . . . . . Hacking Detections 25 | . 5 . 6 . . . 4 1 5 . 1 . . . 3 . Full Trace Events 6 | . . . 2 . . . 1 . . . 1 . . . 2 . Feedback Events . | . . . . . . . . . . . . . . . . . Feedback Blocked . | . . . . . . . . . . . . . . . . . Robot Schematics Acquired . | . . . . . . . . . . . . . . . . . Robots Built 1 | . . . . . . . . . 1 . . . . . . . Authchips . | . . . . . . . . . . . . . . . . . Time 76 | . . . . . . . . . 76 . . . . . . . Total Robot Build Rating 5 | . . . . . . . . . 5 . . . . . . . Part Schematics Acquired 1 | . . . 1 . . . . . . . . . . . . . Parts Built . | . . . . . . . . . . . . . . . . . Authchips . | . . . . . . . . . . . . . . . . . Time . | . . . . . . . . . . . . . . . . . Total Part Build Rating . | . . . . . . . . . . . . . . . . . Parts Repaired 1 | . . . 1 . . . . . . . . . . . . . Time 26 | . . . 26 . . . . . . . . . . . . . Parts Recycled . | . . . . . . . . . . . . . . . . . Recycled Matter 255 | . . . . . . . 255 . . . . . . . . . Retrieved Matter . | . . . . . . . . . . . . . . . . . Retrieved Components . | . . . . . . . . . . . . . . . . . Parts Scanalyzed 1 | . . . 1 . . . . . . . . . . . . . Part Schematics Acquired 1 | . . . 1 . . . . . . . . . . . . . Parts Damaged . | . . . . . . . . . . . . . . . . . Bothacking | -11 -10 -10 -9 -9 -9 -8 -8 -7 -6 -5 -5 -5 -5 -4 -4 -4 ------------ Run | Yrd Mat Min Mat Min Exi Min Mat Fac Fac Fac Upp Upp War Pro Fac Upp Used RIF Installer . | . . . . . . . . . . . . . . . . . Robots Hacked . | . . . . . . . . . . . . . . . . . Non-combat . | . . . . . . . . . . . . . . . . . Combat . | . . . . . . . . . . . . . . . . . Robot Hacks Applied . | . . . . . . . . . . . . . . . . . Relay Couplers Released 2 | . . . . . . . . . . . . . . . 2 . Machine Destruction 2 | . . . . . . . . . . . . . . . 2 . Fabnet Peak Effective % . | . . . . . . . . . . . . . . . . . Robots Rewired 6 | . . . . . . . . . . . . . 5 . 1 . Allies Hacked . | . . . . . . . . . . . . . . . . . Hacks Repelled . | . . . . . . . . . . . . . . . . . Allies | -11 -10 -10 -9 -9 -9 -8 -8 -7 -6 -5 -5 -5 -5 -4 -4 -4 -------- Run | Yrd Mat Min Mat Min Exi Min Mat Fac Fac Fac Upp Upp War Pro Fac Upp Total Allies 7 | . . . . . . . . . 1 . . . 5 . 1 . Largest Group 5 | . . . . . . . . . 1 . . . 5 . 1 . Highest-Rated Group 290 | . . . . . . . . . 23 . . . 290 . 40 . Highest-Rated Ally 65 | . . . . . . . . . 23 . . . 65 . 40 . Total Orders 1 | . . . . . . . . . 1 . . . . . . . ROAM 1 | . . . . . . . . . 1 . . . . . . . Ally Attacks 13 | . . . . . . . . . . . . . 12 . 1 . Total Damage 532 | . . . . . . . . . . . . . 493 . 39 . Kills 4 | . . . . . . . . . . . . . 4 . . . Allies Corrupted . | . . . . . . . . . . . . . . . . . Allies Melted . | . . . . . . . . . . . . . . . . . Intel | -11 -10 -10 -9 -9 -9 -8 -8 -7 -6 -5 -5 -5 -5 -4 -4 -4 ------- Run | Yrd Mat Min Mat Min Exi Min Mat Fac Fac Fac Upp Upp War Pro Fac Upp Robot Analysis Total 3 | . 2 . 1 . . . . . . . . . . . . . Derelict Logs Recovered 3 | . . . . 1 . . . . . . 1 . . . . 1 Drone Launches . | . . . . . . . . . . . . . . . . . Drone Recoveries . | . . . . . . . . . . . . . . . . . Exploration | -11 -10 -10 -9 -9 -9 -8 -8 -7 -6 -5 -5 -5 -5 -4 -4 -4 ------------- Run | Yrd Mat Min Mat Min Exi Min Mat Fac Fac Fac Upp Upp War Pro Fac Upp Turns Passed 9075 | . 529 76 838 343 896 750 1311 283 1660 231 787 167 555 177 289 183 Spaces Moved 6446 | 1 443 69 507 192 556 439 585 157 861 185 444 239 683 250 474 361 Core 1203 | . . . . . . . . . . . 166 239 144 72 221 361 Treads 2374 | . 2 . 1 180 556 439 585 157 443 . 11 . . . . . Legs 81 | 1 11 . . . . . . . . . 69 . . . . . Wheels 1818 | . 430 69 506 12 . . . . 418 185 198 . . . . . Hover 970 | . . . . . . . . . . . . . 539 178 253 . Flight . | . . . . . . . . . . . . . . . . . Fastest Speed 40 | 120 80 110 95 95 160 160 155 160 98 115 50 50 50 50 40 50 Average Speed 113 | 120 97 110 99 162 160 160 160 160 152 115 143 58 59 53 44 50 Slowest Speed 950 | 120 160 110 240 240 160 160 240 160 320 115 950 150 150 61 100 50 Overloaded Moves . | . . . . . . . . . . . . . . . . . Propulsion Burnouts . | . . . . . . . . . . . . . . . . . Robots Hopped . | . . . . . . . . . . . . . . . . . Cave-ins Triggered . | . . . . . . . . . . . . . . . . . Exploration Rate (%) 47 | 2 90 32 58 47 90 95 37 3 25 7 64 49 81 51 14 64 Regions Visited 16 Branch Regions 9 Pre-discovered Areas 1 | . . . . . . . . . . . . . 1 . . . Known Exits Taken 5 | . . . 1 . . . 1 . . . . 1 1 . 1 . Unknown Exits Taken 11 | 1 1 1 . 1 1 1 . 1 1 1 1 . . 1 . . Scrap Searched 7 | . . . . . . 1 . . . . 2 1 . 1 . 2 Spaces Dug 7 | . . . . . . . . . . . 2 . . . 5 . Terrain Destroyed 408 | . . . 1 . . 116 115 . 20 . 68 19 21 43 5 . Melee 7 | . . . . . . . . . . . 2 . . . 5 . Projectile 71 | . . . 1 . . . . . 5 . 10 . 13 42 . . AOE 330 | . . . . . . 116 115 . 15 . 56 19 8 1 . . Terrain Rammed . | . . . . . . . . . . . . . . . . . Walls Destroyed . | . . . . . . . . . . . . . . . . . Machines Disabled . | . . . . . . . . . . . . . . . . . Actions | -11 -10 -10 -9 -9 -9 -8 -8 -7 -6 -5 -5 -5 -5 -4 -4 -4 --------- Run | Yrd Mat Min Mat Min Exi Min Mat Fac Fac Fac Upp Upp War Pro Fac Upp Total 7644 | . 499 69 736 204 568 470 863 182 1098 203 511 262 822 264 530 363 Wait 537 | . 6 1 118 . . 12 144 14 104 7 7 9 96 . 19 . Move 6430 | . 442 68 506 191 555 438 584 156 860 184 443 238 682 249 473 361 Hop . | . . . . . . . . . . . . . . . . . Pick Up 89 | . 12 . 18 . 3 4 21 2 22 4 . 2 . . . 1 Fast Attach 26 | . 1 . 1 . . . 2 . 10 1 . 2 4 . 4 1 Attach 34 | . 1 . 3 1 . 2 8 2 3 2 6 3 . . 3 . Detach 9 | . . . . . 2 . 1 . . . . 2 1 . 3 . Swap 88 | . 9 . 14 3 1 4 26 2 17 2 7 1 2 . . . Drop 89 | . 6 . 16 . 7 2 23 2 22 3 4 2 1 . 1 . Fire 280 | . 22 . 60 9 . 8 54 4 58 . 42 2 5 15 1 . Melee 14 | . . . . . . . . . . . 2 1 . . 11 . Ram 4 | . . . . . . . . . . . . . . . 4 . Kick . | . . . . . . . . . . . . . . . . . Crush 2 | . . . . . . . . . 2 . . . . . . . Escape Stasis . | . . . . . . . . . . . . . . . . . Rewire 42 | . . . . . . . . . . . . . 31 . 11 . Trap . | . . . . . . . . . . . . . . . . . Miscellaneous . | . . . . . . . . . . . . . . . . . Route ------- -11/Scrapyard -10/Materials (discovered 4 exits: *Mat x2 / [*Min x2]) -10/Mines -9/Materials (discovered 3 exits: *Mat / *Min x2) -9/Mines -9/Exiles -8/Mines (discovered 2 exits: *Mat x2) -8/Materials -7/Factory -6/Factory (discovered 3 exits: *Fac / *Low x2) -5/Factory -5/Upper Caves -5/Upper Caves -5/Warlord -4/Proximity Caves -4/Factory (discovered 2 exits: *Upp x2) -4/Upper Caves History --------- Turn | Location | Event 1 | -11/Scrapyard | Discovered new exit (range 0) 1 | -11/Scrapyard | Entered Materials 158 | -10/Materials | Discovered new exit (range 10) 203 | -10/Materials | Discovered new exit (range 3) 270 | -10/Materials | Discovered new exit (range 16) 330 | -10/Materials | Build established: Mutant 428 | -10/Materials | Discovered new exit (range 14) 530 | -10/Materials | Entered Mines 600 | -10/Mines | Discovered new exit (range 7) 606 | -10/Mines | Entered Materials 606 | -9/Materials | Evolved 2 slots: Propulsion x1, Utility x1 1107 | -9/Materials | Identified exit to Mines 1107 | -9/Materials | Central database locked down 1251 | -9/Materials | Discovered new exit (range 10) 1382 | -9/Materials | Repaired Wheel 1444 | -9/Materials | Entered Mines 1702 | -9/Mines | A weapon hastily lodged in a ceiling crevice suddenly fell to the ground 1716 | -9/Mines | Learned location of 1 exit from Materials 1780 | -9/Mines | Deemed a non-threat by the Exiles lab entrance 1780 | -9/Mines | Discovered new exit (range 5) 1787 | -9/Mines | Entered Exiles 1829 | -9/Exiles | Met 8R-AWN 1857 | -9/Exiles | Met EX-HEX 1947 | -9/Exiles | Met EX-DEC 1977 | -9/Exiles | Visited The Gauntlet 2206 | -9/Exiles | Discovered new exit (range 14) 2414 | -9/Exiles | Met EX-BIN 2437 | -9/Exiles | Aligned with FarCom system 2438 | -9/Exiles | Given EX-Vault access code 2528 | -9/Exiles | Opened EX-Vault 2535 | -9/Exiles | Found Latent Energy Streamer 2566 | -9/Exiles | Warned to stay clear of 0b10 Research branches 2683 | -9/Exiles | Left Exiles lab with Latent Energy Streamer 2683 | -9/Exiles | Entered Mines 3145 | -8/Mines | Build established: Scavenger-Mutant 3363 | -8/Mines | Discovered new exit (range 10) 3416 | -8/Mines | Discovered new exit (range 3) 3433 | -8/Mines | Entered Materials 3433 | -8/Materials | Evolved 2 slots: Utility x2 3434 | -8/Materials | Identified exit to Factory 3704 | -8/Materials | Garrison activated, responded to threat 3770 | -8/Materials | Build established: Mutant 4744 | -8/Materials | Entered Factory 4744 | -7/Factory | Evolved 2 slots: Propulsion x2 4982 | -7/Factory | Discovered new exit (range 13) 5027 | -7/Factory | Entered another Factory area 5027 | -6/Factory | Evolved 2 slots: Power x1, Propulsion x1 5345 | -6/Factory | Fabricated A-15 Conveyor (x1) 5464 | -6/Factory | Discovered new exit (range 11) 6090 | -6/Factory | Lost 4 parts (1p1n2u) 6222 | -6/Factory | Garrison activated, responded to threat 6303 | -6/Factory | Identified exit to Lower Caves 6681 | -6/Factory | Discovered new exit (range 5) 6687 | -6/Factory | Entered another Factory area 6687 | -5/Factory | Evolved 2 slots: Utility x2 6897 | -5/Factory | Discovered new exit (range 10) 6918 | -5/Factory | Entered Upper Caves 6950 | -5/Upper Caves | Build established: Scavenger-Mutant 7257 | -5/Upper Caves | Attracted the attention of an 0b10 checkpoint 7306 | -5/Upper Caves | Destroyed 7 combat bots 7308 | -5/Upper Caves | Lost 5 parts (3n1u1w) 7413 | -5/Upper Caves | Attracted the attention of an 0b10 base 7565 | -5/Upper Caves | Build established: Mutant 7601 | -5/Upper Caves | Spotted B-75 Beast 7642 | -5/Upper Caves | Lost 6 parts (1n4u1w) 7700 | -5/Upper Caves | Discovered new exit (range 10) 7701 | -5/Upper Caves | Learned Factory emergency access door positions 7705 | -5/Upper Caves | Entered another Upper Caves area 7755 | -5/Upper Caves | Attracted the attention of an 0b10 checkpoint 7762 | -5/Upper Caves | Encountered a Warlord checkpoint 7850 | -5/Upper Caves | Discovered new exit (range 8) 7851 | -5/Upper Caves | Acquired the password to a Derelict Tinkerer's latest research 7863 | -5/Upper Caves | Found Prototype Special Weapon 7863 | -5/Upper Caves | Identified Molecular Deconstructor 7872 | -5/Upper Caves | Identified exit to Warlord 7872 | -5/Upper Caves | Entered Warlord 7888 | -5/Warlord | Discovered new exit (range 9) 7901 | -5/Warlord | System corruption cleaned by Quarantine Array 7930 | -5/Warlord | Learned location of Armory (-3) 7930 | -5/Warlord | Learned Testing stockpile data 8049 | -5/Warlord | Met Warlord 8074 | -5/Warlord | Warlord's base attacked by MAIN.C 8114 | -5/Warlord | Learned 4 Armory zone layouts 8114 | -5/Warlord | Learned 4 Research zone layouts 8114 | -5/Warlord | Learned Armory security intel 8114 | -5/Warlord | Learned Armory scanalyzer intel 8114 | -5/Warlord | Learned Research scanalyzer intel 8114 | -5/Warlord | Learned Research repair station intel 8213 | -5/Warlord | Found Prototype Energy Gun 8213 | -5/Warlord | Identified Vortex Rail 8215 | -5/Warlord | Found Vortex Rail 8301 | -5/Warlord | Warlord forces counterattacked 8305 | -5/Warlord | P-70 Sage assimilated allied 78-QK2(g) 8327 | -5/Warlord | Spotted B-75 Beast 8331 | -5/Warlord | Spotted B-86 Titan 8400 | -5/Warlord | Lost 6 allies 8426 | -5/Warlord | Identified exit to Proximity Caves 8427 | -5/Warlord | Entered Proximity Caves 8499 | -4/Proximity Caves | Attracted the attention of an 0b10 checkpoint 8546 | -4/Proximity Caves | Lost 6 parts (2p4n) 8579 | -4/Proximity Caves | Core integrity fell below 50% 8601 | -4/Proximity Caves | Discovered new exit (range 7) 8602 | -4/Proximity Caves | Lost 5 parts (2n1u2w) 8604 | -4/Proximity Caves | Entered Factory 8604 | -4/Factory | Evolved 2 slots: Propulsion x1, Utility x1 8793 | -4/Factory | Identified exit to Upper Caves 8884 | -4/Factory | Lost 3 parts (1n1u1w) 8892 | -4/Factory | Core integrity fell below 50% 8893 | -4/Factory | Entered Upper Caves 8895 | -4/Upper Caves | Attracted the attention of an 0b10 checkpoint 8907 | -4/Upper Caves | Learned Research terminal intel 9035 | -4/Upper Caves | Core integrity fell below 20% 9076 | -4/Upper Caves | Destroyed by G-67 Veteran with Plasma Rifle Last Messages --------------- 08907_ Acquired derelict log, extracted data. Data stored: Research terminal intel. 08940_ Acquired Adv. Reaction Control System. 08942_ Acquired Quantum Rifle. 08962_ Searching scrap... 08962_ Found Hvy. Machine Gun. 08962_ Found Adv. Weight Redist. System. 08962_ Found Bore Cannon. 08962_ Found 53 Matter. 08963_ Acquired 10 matter. 08967_ Searching scrap... 08967_ Found Reaction Control System. 08967_ Found Mak. ECM Suite. 08967_ Found Com. Matter Pod. 08967_ Found 47 Matter. 08996_ G-67 Veteran suffers critical hit (Burn). 09004_ Adv. Reaction Control System destroyed. 09018_ Penetrated by Slug. 09018_ Slug penetrates Wall. 09074_ Penetrated by Slug. Map ----- +----------------------------------------------------+ | ?????????????????????????????????????????????????? | | ?????????????????????????????????????????????????? | | ?????????????????????????????????????????????????? | | ?????????????????????????????????????????????????? | | ?????????????????????????????????????????????????? | | ?????????????????????????????????????????????????? | | ?????????????????????????????????????????????????? | | ?????????????????????????????????????????????????? | | ?????????????????????????????????????????????????? | | ?????????????????????????????????????????????????? | | ?????????????????????????????????????????????????? | | ?????????????????????????????????????????????????? | | ?????????????????????????????????????????????????? | | ?????????????????????????????????????????????????? | | ?????????????????????????????????????????????###?# | | ???????????????????????????????###??????????## ### | | ??????????????????????????????# ##?????????# | | ?????????????????????????????# #?????????# | | ??????????????????????????### #?????????# | | ?????????????????????????? # ?????????## | | ?????????????????????????? #?????????## ### | | ?????????????????????????? #?????????## #?# | | ?????????????????????????? #?????#???## #?? | | ?????????????????????????? #????? ##??# ### | | ????????????????????????## ##?? #??# # | | ???????????????????????##@ ### #??# # #### | | ??????????????????????## #??# ##""" | | ??????????????????????# ####### #"" | | ??????????????????????# ## ##?# ## | | ??????????####????##??## ## ### # | | ?????????## ##?# #???## ## #?# # # | | ?????????# ## #???## ## ### ## | | ?????????# # ##### ## # | | ????????## # #?# g #" | | ????????# # #??# ##" | | ???????## #??## g ## #?#= X | | ???????# # ##?# #### ### #?## | | ????????# # ### ##??# #?## #### | | ??????????# ## ##??## ###### | | ??????????# #####??## #??###### | | ??????????# # ######??????# #??????? | | ?????????# # ## ##?????????# ## #??????? | | ????????# #### ###???????# ### ##??????? | | ????????# #???## ##???#### #?#### ##????# ? | | ????????####?????# ##### #????? ?????# | | ?????????????????# # ## # # ## #????# | | ?????????????????## # ## # ####### #??#?????# | | ??????????????????### #?????? ????????# | | ????????????????????######### #?????? ????????? | | ????????????????????????????# #?????## ???????? | +----------------------------------------------------+ Best States ------------- Heat Dissipation 71 Energy Generation 29 Energy Capacity 480 Matter Stores 300 Matter Capacity 300 Sight Range 22 Terrain Scan Range 20 Terrain Scan Density 10 ECM Strength 1 Jamming Range 12 Armor Coverage 525 Resistance: KI 30 Evasion (%) 62 Targeting Accuracy 8 Recoil Reduction 4 Offensive Hacking 10 Item Schematics ----------------- Wheel | -9/Materials | Scanalyzed Robot Schematics ------------------ None Fabricated ------------ A-15 Conveyor | x1 | -6/Factory | Preloaded Alien Tech Used ----------------- None Achievements -------------- None Challenges ------------ None Game ------ Seed DisruptorTargetAutogun Manual? 0 Play Time 03:00:27 Cumulative 153.6 hours Start 2025.01.09 @ 23:31:08 End 2025.01.10 @ 21:34:50 Sessions 3 Manual Loads 0 Difficulty Rogue Special Mode None Game No. 78 Rogue 78 Adventurer 0 Explorer 0 Win Type - Total 2 Types 2/0/0/0/0/0/0/0/0 Lore% 29 Gallery% 51 Achievement% 41 Wizard Run 0 Options --------- Layout 0 ASCII 0 Keyboard 1 Movement Numpad Keybinds 0 Fullscreen 1 Font 18/SmallcapsGlow Map View 76x50 Zoom Use 0% Tactical HUD 1 Map Filters NONE Filters NONE Steam 1 RUN: 8ab97ad7-8568-4cbe-9c02-7948ceeace74